fUSD/lending_fUSD_20241218
["ID","MTS","AMOUNT","RATE_DAILY","PERIOD"]
[345796979,1734483045801,-500.0,0.00024999,4]
[345796980,1734483045811,-327.75578049,0.00024999,4]
[345796981,1734483045999,-172.24421951,0.00024999,4]
[345796982,1734483046009,-388.92,0.00024999,4]
[345796983,1734483046019,-500.0,0.00024999,4]
[345796984,1734483046030,-500.0,0.00024999,4]
[345796985,1734483046040,-500.0,0.00024999,4]
[345796986,1734483046050,-500.0,0.00024999,4]
[345796987,1734483046060,-378.45,0.00024999,4]
[345796988,1734483046070,-500.0,0.00024999,4]
[345796989,1734483046080,-500.0,0.00024999,4]
[345796990,1734483046090,-500.0,0.00024999,4]
[345796991,1734483046099,-500.0,0.00024999,4]
[345796992,1734483046109,-500.0,0.00024999,4]
[345796993,1734483046119,-234.3546225,0.00024999,4]
[345796994,1734483046128,-500.0,0.00024999,4]
[345796995,1734483046147,-500.0,0.00024999,4]
[345796996,1734483046157,-500.0,0.00024999,4]
[345796997,1734483046166,-587.05,0.00024999,4]
[345796998,1734483046177,-500.0,0.00024999,4]
[345796999,1734483046186,-500.0,0.00024999,4]
[345797000,1734483046196,-324.7591199,0.00024999,4]
[345797001,1734483046206,-500.0,0.00024999,4]
[345797003,1734483046215,-500.0,0.00024999,4]
[345797004,1734483046224,-504.76,0.00024999,4]
[345797005,1734483046234,-345.74,0.00024999,4]
[345797006,1734483046243,-500.0,0.00024999,4]
[345797007,1734483046253,-446.73590182,0.00024999,4]
[345797008,1734483046262,-500.0,0.00024999,4]
[345797009,1734483046272,-500.0,0.00024999,4]
[345797010,1734483046281,-500.0,0.00024999,4]
[345797011,1734483046290,-500.0,0.00024999,4]
[345797012,1734483046299,-500.0,0.00024999,4]
[345797013,1734483046309,-500.0,0.00024999,4]
[345797014,1734483046318,-500.0,0.00024999,4]
[345797015,1734483046327,-500.0,0.00024999,4]
[345797016,1734483046337,-500.0,0.00024999,4]
[345797017,1734483046346,-500.0,0.00024999,4]
[345797018,1734483046355,-500.0,0.00024999,4]
[345797019,1734483046365,-500.0,0.00024999,4]
[345797020,1734483046374,-500.0,0.00024999,4]
[345797021,1734483046389,-500.0,0.00024999,4]
[345797022,1734483046399,-500.0,0.00024999,4]
[345797023,1734483046408,-241.22,0.00024999,4]
[345797024,1734483046418,-500.0,0.00024999,4]
[345797025,1734483046428,-500.0,0.00024999,4]
[345797026,1734483046438,-500.0,0.00024999,4]
[345797027,1734483046448,-500.0,0.00024999,4]
[345797028,1734483046458,-500.0,0.00024999,4]
[345797029,1734483046467,-500.0,0.00024999,4]
[345797030,1734483046477,-174.23,0.00024999,4]
[345797031,1734483046487,-500.0,0.00024999,4]
[345797032,1734483046496,-500.0,0.00024999,4]
[345797033,1734483046506,-500.0,0.00024999,4]
[345797034,1734483046516,-500.0,0.00024999,4]
[345797035,1734483046525,-500.0,0.00024999,4]
[345797036,1734483046534,-500.0,0.00024999,4]
[345797037,1734483046544,-562.13792407,0.00024999,4]
[345797038,1734483046554,-500.0,0.00024999,4]
[345797039,1734483046563,-500.0,0.00024999,4]
[345797040,1734483046573,-500.0,0.00024999,4]
[345797041,1734483046583,-500.0,0.00024999,4]
[345797042,1734483046592,-500.0,0.00024999,4]
[345797043,1734483046601,-500.0,0.00024999,4]
[345797044,1734483046611,-500.0,0.00024999,4]
[345797045,1734483046621,-500.0,0.00024999,4]
[345797046,1734483046639,-500.0,0.00024999,4]
[345797047,1734483046649,-500.0,0.00024999,4]
[345797048,1734483046659,-500.0,0.00024999,4]
[345797049,1734483046670,-500.0,0.00024999,4]
[345797050,1734483046680,-500.0,0.00024999,4]
[345797051,1734483046690,-500.0,0.00024999,4]
[345797052,1734483046700,-500.0,0.00024999,4]
[345797053,1734483046711,-500.0,0.00024999,4]
[345797054,1734483046722,-500.0,0.00024999,4]
[345797055,1734483046732,-500.0,0.00024999,4]
[345797056,1734483046742,-500.0,0.00024999,4]
[345797057,1734483046752,-500.0,0.00024999,4]
[345797058,1734483046762,-372.28059957,0.00024999,4]
[345797059,1734483046773,-500.0,0.00024999,4]
[345797060,1734483046784,-500.0,0.00024999,4]
[345797061,1734483046794,-500.0,0.00024999,4]
[345797062,1734483046804,-500.0,0.00024999,4]
[345797063,1734483046814,-500.0,0.00024999,4]
[345797064,1734483046824,-310.01,0.00024999,4]
[345797065,1734483046834,-473.81,0.00024999,4]
[345797066,1734483046844,-500.0,0.00024999,4]
[345797067,1734483046856,-500.0,0.00024999,4]
[345797068,1734483046868,-500.0,0.00024999,4]
[345797069,1734483046886,-500.0,0.00024999,4]
[345797070,1734483046898,-500.0,0.00024999,4]
[345797071,1734483046910,-500.0,0.00024999,4]
[345797072,1734483046920,-422.07004302,0.00024999,4]
[345797073,1734483046931,-500.0,0.00024999,4]
[345797074,1734483046942,-500.0,0.00024999,4]
[345797075,1734483046954,-553.36,0.00024999,4]
[345797076,1734483046965,-566.4,0.00024999,4]
[345797077,1734483046976,-500.0,0.00024999,4]
[345797078,1734483046988,-500.0,0.00024999,4]
[345797079,1734483046999,-500.0,0.00024999,4]
[345797080,1734483047010,-500.0,0.00024999,4]
[345797081,1734483047022,-500.0,0.00024999,4]
[345797082,1734483047033,-500.0,0.00024999,4]
[345797083,1734483047044,-500.0,0.00024999,4]
[345797084,1734483047057,-500.0,0.00024999,4]
[345797085,1734483047068,-500.0,0.00024999,4]
[345797086,1734483047079,-500.0,0.00024999,4]
[345797087,1734483047089,-500.0,0.00024999,4]
[345797088,1734483047100,-500.0,0.00024999,4]
[345797089,1734483047111,-500.0,0.00024999,4]
[345797090,1734483047121,-500.0,0.00024999,4]
[345797091,1734483047134,-500.0,0.00024999,4]
[345797092,1734483047146,-589.11850553,0.00024999,4]
[345797093,1734483047158,-500.0,0.00024999,4]
[345797094,1734483047169,-500.0,0.00024999,4]
[345797095,1734483047181,-561.69638827,0.00024999,4]
[345797096,1734483047192,-500.0,0.00024999,4]
[345797097,1734483047204,-500.0,0.00024999,4]
[345797098,1734483047216,-500.0,0.00024999,4]
[345797099,1734483047228,-500.0,0.00024999,4]
[345797100,1734483047239,-463.84,0.00024999,4]
[345797101,1734483047251,-500.0,0.00024999,4]
[345797102,1734483047263,-500.0,0.00024999,4]
[345797103,1734483047275,-500.0,0.00024999,4]
[345797104,1734483047287,-500.0,0.00024999,4]
[345797105,1734483047298,-503.3,0.00024999,4]
[345797106,1734483047308,-500.0,0.00024999,4]
[345797107,1734483047320,-500.0,0.00024999,4]
[345797108,1734483047332,-500.0,0.00024999,4]
[345797109,1734483047343,-500.0,0.00024999,4]
[345797110,1734483047354,-500.0,0.00024999,4]
[345797111,1734483047365,-500.0,0.00024999,4]
[345797112,1734483047377,-500.0,0.00024999,4]
[345797113,1734483047392,-300.83,0.00024999,4]
[345797114,1734483047403,-500.0,0.00024999,4]
[345797115,1734483047414,-500.0,0.00024999,4]
[345797116,1734483047425,-500.0,0.00024999,4]
[345797117,1734483047435,-500.0,0.00024999,4]
[345797118,1734483047446,-383.09893171,0.00024999,4]
[345797119,1734483047457,-500.0,0.00024999,4]
[345797120,1734483047469,-500.0,0.00024999,4]
[345797121,1734483047481,-500.0,0.00024999,4]
[345797122,1734483047492,-500.0,0.00024999,4]
[345797123,1734483047503,-500.0,0.00024999,4]
[345797124,1734483047515,-500.0,0.00024999,4]
[345797125,1734483047526,-500.0,0.00024999,4]
[345797126,1734483047537,-500.0,0.00024999,4]
[345797127,1734483047547,-500.0,0.00024999,4]
[345797128,1734483047557,-500.0,0.00024999,4]
[345797129,1734483047567,-500.0,0.00024999,4]
[345797130,1734483047578,-500.0,0.00024999,4]
[345797131,1734483047588,-500.0,0.00024999,4]
[345797132,1734483047600,-601.1,0.00024999,4]
[345797133,1734483047614,-276.57,0.00024999,4]
[345797134,1734483047627,-500.0,0.00024999,4]
[345797135,1734483047642,-500.0,0.00024999,4]
[345797136,1734483047652,-500.0,0.00024999,4]
[345797137,1734483047663,-500.0,0.00024999,4]
[345797138,1734483047672,-500.0,0.00024999,4]
[345797139,1734483047683,-441.5,0.00024999,4]
[345797140,1734483047693,-415.99,0.00024999,4]
[345797141,1734483047704,-500.0,0.00024999,4]
[345797142,1734483047716,-500.0,0.00024999,4]
[345797143,1734483047727,-500.0,0.00024999,4]
[345797144,1734483047739,-500.0,0.00024999,4]
[345797145,1734483047751,-500.0,0.00024999,4]
[345797146,1734483047761,-425.7,0.00024999,4]
[345797147,1734483047772,-500.0,0.00024999,4]
[345797148,1734483047782,-500.0,0.00024999,4]
[345797149,1734483047792,-500.0,0.00024999,4]
[345797150,1734483047803,-500.0,0.00024999,4]
[345797151,1734483047814,-500.0,0.00024999,4]
[345797152,1734483047824,-500.0,0.00024999,4]
[345797153,1734483047835,-500.0,0.00024999,4]
[345797154,1734483047845,-500.0,0.00024999,4]
[345797155,1734483047856,-245.52,0.00024999,4]
[345797156,1734483047866,-500.0,0.00024999,4]
[345797157,1734483047877,-500.0,0.00024999,4]
[345797158,1734483047891,-500.0,0.00024999,4]
[345797159,1734483047901,-500.0,0.00024999,4]
[345797160,1734483047912,-500.0,0.00024999,4]
[345797161,1734483047923,-500.0,0.00024999,4]
[345797162,1734483047934,-500.0,0.00024999,4]
[345797163,1734483047944,-500.0,0.00024999,4]
[345797164,1734483047957,-382.86,0.00024999,4]
[345797165,1734483047968,-500.0,0.00024999,4]
[345797166,1734483047978,-500.0,0.00024999,4]
[345797167,1734483047989,-500.0,0.00024999,4]
[345797168,1734483047999,-500.0,0.00024999,4]
[345797169,1734483048010,-827.32688444,0.00024999,2]
[345797170,1734483048020,-500.0,0.00024999,4]
[345797171,1734483048032,-500.0,0.00024999,4]
[345797172,1734483048043,-500.0,0.00024999,4]
[345797173,1734483048054,-500.0,0.00024999,4]
[345797174,1734483048065,-500.0,0.00024999,4]
[345797175,1734483048077,-500.0,0.00024999,4]
[345797176,1734483048087,-313.04,0.00024999,4]
[345797177,1734483048098,-500.0,0.00024999,4]
[345797178,1734483048109,-500.0,0.00024999,4]
[345797179,1734483048120,-500.0,0.00024999,4]
[345797180,1734483048134,-500.0,0.00024999,4]
[345797181,1734483048145,-487.06,0.00024999,4]
[345797182,1734483048156,-500.0,0.00024999,4]
[345797183,1734483048168,-500.0,0.00024999,4]
[345797184,1734483048180,-500.0,0.00024999,4]
[345797185,1734483048191,-500.0,0.00024999,4]
[345797186,1734483048202,-500.0,0.00024999,4]
[345797187,1734483048213,-500.0,0.00024999,4]
[345797188,1734483048225,-500.0,0.00024999,4]
[345797189,1734483048237,-500.0,0.00024999,4]
[345797190,1734483048247,-500.0,0.00024999,4]
[345797191,1734483048259,-500.0,0.00024999,4]
[345797192,1734483048271,-500.0,0.00024999,4]
[345797193,1734483048281,-500.0,0.00024999,4]
[345797194,1734483048293,-500.0,0.00024999,4]
[345797195,1734483048303,-500.0,0.00024999,4]
[345797196,1734483048315,-500.0,0.00024999,4]
[345797197,1734483048326,-500.0,0.00024999,4]
[345797198,1734483048337,-500.0,0.00024999,4]
[345797199,1734483048348,-500.0,0.00024999,4]
[345797200,1734483048358,-500.0,0.00024999,4]
[345797201,1734483048370,-254.3636604,0.00024999,4]
[345797202,1734483048384,-500.0,0.00024999,4]
[345797203,1734483048395,-500.0,0.00024999,4]
[345797204,1734483048406,-500.0,0.00024999,4]
[345797205,1734483048417,-500.0,0.00024999,4]
[345797206,1734483048427,-500.0,0.00024999,4]
[345797207,1734483048439,-500.0,0.00024999,4]
[345797208,1734483048451,-500.0,0.00024999,4]
[345797209,1734483048462,-500.0,0.00024999,4]
[345797210,1734483048473,-500.0,0.00024999,4]
[345797211,1734483048484,-500.0,0.00024999,4]
[345797212,1734483048494,-500.0,0.00024999,4]
[345797213,1734483048505,-500.0,0.00024999,4]
[345797214,1734483048516,-298.0,0.00024999,4]
[345797215,1734483048527,-500.0,0.00024999,4]
[345797216,1734483048538,-500.0,0.00024999,4]
[345797217,1734483048549,-500.0,0.00024999,4]
[345797218,1734483048560,-569.68,0.00024999,4]
[345797219,1734483048571,-500.0,0.00024999,4]
[345797220,1734483048582,-500.0,0.00024999,4]
[345797221,1734483048592,-500.0,0.00024999,4]
[345797222,1734483048603,-500.0,0.00024999,4]
[345797223,1734483048613,-500.0,0.00024999,4]
[345797224,1734483048624,-500.0,0.00024999,4]
[345797225,1734483048640,-500.0,0.00024999,4]
[345797226,1734483048651,-500.0,0.00024999,4]
[345797227,1734483048661,-500.0,0.00024999,4]
[345797228,1734483048675,-500.0,0.00024999,4]
[345797229,1734483048687,-500.0,0.00024999,4]
[345797230,1734483048698,-500.0,0.00024999,4]
[345797231,1734483048709,-500.0,0.00024999,4]
[345797232,1734483048720,-500.0,0.00024999,4]
[345797233,1734483048731,-500.0,0.00024999,4]
[345797234,1734483048741,-500.0,0.00024999,4]
[345797235,1734483048751,-500.0,0.00024999,4]
[345797236,1734483048762,-500.0,0.00024999,4]
[345797237,1734483048774,-500.0,0.00024999,4]
[345797238,1734483048785,-500.0,0.00024999,4]
[345797239,1734483048796,-311.79966311,0.00024999,4]
[345797240,1734483048807,-500.0,0.00024999,4]
[345797241,1734483048817,-500.0,0.00024999,4]
[345797242,1734483048828,-365.64,0.00024999,4]
[345797243,1734483048839,-500.0,0.00024999,4]
[345797244,1734483048850,-500.0,0.00024999,4]
[345797245,1734483048860,-307.22863591,0.00024999,4]
[345797246,1734483048871,-500.0,0.00024999,4]
[345797247,1734483048882,-500.0,0.00024999,4]
[345797248,1734483048896,-500.0,0.00024999,4]
[345797249,1734483048907,-500.0,0.00024999,4]
[345797250,1734483048919,-500.0,0.00024999,4]
[345797251,1734483048930,-403.26,0.00024999,4]
[345797252,1734483048940,-500.0,0.00024999,4]
[345797253,1734483048951,-341.89,0.00024999,4]
[345797254,1734483048963,-500.0,0.00024999,4]
[345797255,1734483048974,-500.0,0.00024999,4]
[345797256,1734483048985,-500.0,0.00024999,4]
[345797257,1734483048996,-500.0,0.00024999,4]
[345797258,1734483049006,-500.0,0.00024999,4]
[345797259,1734483049017,-500.0,0.00024999,4]
[345797260,1734483049027,-500.0,0.00024999,4]
[345797261,1734483049038,-500.0,0.00024999,4]
[345797262,1734483049049,-500.0,0.00024999,4]
[345797263,1734483049059,-574.59,0.00024999,4]
[345797264,1734483049069,-500.0,0.00024999,4]
[345797265,1734483049080,-500.0,0.00024999,4]
[345797266,1734483049090,-500.0,0.00024999,4]
[345797267,1734483049101,-500.0,0.00024999,4]
[345797268,1734483049111,-500.0,0.00024999,4]
[345797269,1734483049122,-500.0,0.00024999,4]
[345797270,1734483049135,-500.0,0.00024999,4]
[345797271,1734483049392,-500.0,0.00024999,4]
[345797272,1734483049402,-500.0,0.00024999,4]
[345797273,1734483049411,-500.0,0.00024999,4]
[345797274,1734483049422,-500.0,0.00024999,4]
[345797275,1734483049431,-447.94,0.00024999,4]
[345797276,1734483049440,-1070.70619385,0.00024999,10]
[345797277,1734483049449,-168.62,0.00024999,4]
[345797278,1734483049459,-500.0,0.00024999,4]
[345797279,1734483049468,-190.64,0.00024999,4]
[345797280,1734483049477,-581.92,0.00024999,4]
[345797281,1734483049486,-581.92,0.00024999,4]
[345797282,1734483049495,-500.0,0.00024999,4]
[345797283,1734483049504,-581.92,0.00024999,4]
[345797284,1734483049514,-581.92,0.00024999,4]
[345797285,1734483049523,-500.0,0.00024999,4]
[345797286,1734483049532,-581.92,0.00024999,4]
[345797287,1734483049541,-500.0,0.00024999,4]
[345797288,1734483049551,-581.92,0.00024999,4]
[345797289,1734483049560,-574.77623787,0.00024999,4]
[345797290,1734483049569,-581.92,0.00024999,4]
[345797291,1734483049578,-581.92,0.00024999,4]
[345797292,1734483049588,-581.92,0.00024999,4]
[345797293,1734483049596,-581.92,0.00024999,4]
[345797294,1734483049606,-581.92,0.00024999,4]
[345797295,1734483049616,-581.92,0.00024999,4]
[345797296,1734483049627,-581.92,0.00024999,4]
[345797297,1734483049640,-581.92,0.00024999,4]
[345797298,1734483049649,-581.92,0.00024999,4]
[345797299,1734483049659,-581.92,0.00024999,4]
[345797300,1734483049668,-581.92,0.00024999,4]
[345797301,1734483049679,-581.92,0.00024999,4]
[345797302,1734483049688,-272.85,0.00024999,4]
[345797303,1734483049697,-581.92,0.00024999,4]
[345797304,1734483049707,-581.92,0.00024999,4]
[345797305,1734483049717,-581.92,0.00024999,4]
[345797306,1734483049726,-581.92,0.00024999,4]
[345797307,1734483049735,-582.08,0.00024999,4]
[345797308,1734483049744,-500.0,0.00024999,4]
[345797309,1734483049753,-500.0,0.00024999,4]
[345797310,1734483049763,-500.0,0.00024999,4]
[345797311,1734483049772,-500.0,0.00024999,4]
[345797312,1734483049782,-500.0,0.00024999,4]
[345797313,1734483049792,-500.0,0.00024999,4]
[345797314,1734483049801,-500.0,0.00024999,4]
[345797315,1734483049811,-500.0,0.00024999,4]
[345797316,1734483049820,-362.92,0.00024999,4]
[345797317,1734483049829,-500.0,0.00024999,4]
[345797318,1734483049839,-500.0,0.00024999,4]
[345797319,1734483049848,-500.0,0.00024999,4]
[345797320,1734483049858,-500.0,0.00024999,4]
[345797321,1734483049867,-500.0,0.00024999,4]
[345797322,1734483049877,-500.0,0.00024999,4]
[345797323,1734483049889,-500.0,0.00024999,4]
[345797324,1734483049898,-500.0,0.00024999,4]
[345797325,1734483049907,-500.0,0.00024999,4]
[345797326,1734483049916,-500.0,0.00024999,4]
[345797327,1734483049925,-500.0,0.00024999,4]
[345797328,1734483049933,-500.0,0.00024999,4]
[345797329,1734483049941,-500.0,0.00024999,4]
[345797330,1734483049949,-500.0,0.00024999,4]
[345797331,1734483049957,-231.95,0.00024999,4]
[345797332,1734483049965,-500.0,0.00024999,4]
[345797333,1734483049973,-500.0,0.00024999,4]
[345797334,1734483049980,-500.0,0.00024999,4]
[345797335,1734483049989,-214.65,0.00024999,4]
[345797336,1734483049996,-1070.70619385,0.00024999,10]
[345797337,1734483050004,-3000.0,0.00024999,2]
[345797338,1734483050013,-903.0,0.00025,2]
[345797339,1734483050021,-1105.29796239,0.00025,2]
[345797340,1734483050029,-224632.55831228,0.00025,5]
[345797341,1734483050044,-4841.79727168,0.00025,5]
[345797342,1734483050055,-10494.93591286,0.00025,5]
[345797343,1734483050067,-101824.22804556,0.00025,5]
[345797344,1734483050075,-17686.57956938,0.00025,3]
[345797345,1734483050084,-926279.95240216,0.00025,2]
[345797346,1734483050095,-397335.13802404,0.00025,2]
[345797347,1734483050107,-1821.16173639,0.00025,2]
[345797348,1734483050118,-70892.96828307,0.00025,2]
[345797349,1734483050129,-17831.67858389,0.00025,2]
[345797350,1734483050143,-258.92,0.00025,2]
[345797351,1734483050154,-2088.79282,0.00025,2]
[345797352,1734483050165,-2865.84667819,0.00025,2]
[345797353,1734483050176,-2328.65129334,0.00025,2]
[345797354,1734483050187,-4980.55005,0.00025,2]
[345797355,1734483050199,-832.18292519,0.00025,2]
[345797356,1734483086098,300.0,0.00022,2]
[345797357,1734483096505,300.0,0.00022,5]
[345797358,1734483108057,300.0,0.00022,6]
[345797359,1734483111720,300.0,0.00022,7]
[345797360,1734483173180,300.0,0.00022,5]
[345797361,1734483178935,300.0,0.00022,7]
[345797362,1734483216367,290.0,0.00022,8]
[345797363,1734483283675,280.0,0.00022,5]
[345797365,1734483305200,279.0,0.00022,7]
[345797377,1734483601014,162.29,0.00010137,2]
[345797379,1734483634931,300.0,0.00022,2]
[345797386,1734483823034,747.38,0.00021836,2]
[345797387,1734483968434,10000.0,0.00022,2]
[345797396,1734484232029,-153.86425465,0.00023507,2]
[345797397,1734484232039,-150.0,0.00023514,2]
[345797398,1734484232050,-632.0,0.00023514,2]
[345797399,1734484232059,-133.1440363,0.00023561,2]
[345797400,1734484232090,-366.8559637,0.00023561,2]
[345797401,1734484232100,-250.0,0.00023681,2]
[345797402,1734484232109,-1000.0,0.00023695,2]
[345797403,1734484232119,-1431.01953217,0.00023711,2]
[345797404,1734484232131,-4107.69046783,0.00023711,2]
[345797405,1734484232141,-722.29,0.00023724,2]
[345797406,1734484232151,-987.45,0.00023725,2]
[345797407,1734484232161,-265.57,0.00023737,2]
[345797408,1734484232171,-250.0,0.00023749,2]
[345797409,1734484232181,-441.861,0.0002375,2]
[345797410,1734484232191,-557.78,0.00023755,2]
[345797411,1734484232201,-23900.0,0.00023765,2]
[345797412,1734484232210,-153.86425465,0.00023836,2]
[345797413,1734484232220,-153.86425465,0.00023836,2]
[345797414,1734484232230,-1000.0,0.00023858,2]
[345797415,1734484232240,-200.0,0.00023858,10]
[345797416,1734484232250,-150.0,0.00023858,2]
[345797417,1734484232259,-30742.67,0.00023859,2]
[345797418,1734484232270,-162.64,0.0002388,2]
[345797419,1734484232280,-150.46,0.00023898,30]
[345797420,1734484232289,-177.23,0.00024001,2]
[345797421,1734484232299,-747.38,0.000241,2]
[345797422,1734484232308,-153.86425465,0.00024137,2]
[345797423,1734484232318,-153.86425465,0.00024137,2]
[345797424,1734484232327,-3825.42549775,0.00024202,30]
[345797425,1734484232337,-541.0,0.0002425,2]
[345797426,1734484232347,-153.86425465,0.00024438,2]
[345797427,1734484232357,-167.09,0.00024455,2]
[345797428,1734484232366,-178.2770547,0.000245,2]
[345797429,1734484232375,-541.0,0.000245,2]
[345797430,1734484232384,-265.57,0.00024615,2]
[345797431,1734484232393,-983.76,0.0002463,2]
[345797432,1734484232403,-1018.07,0.0002463,2]
[345797433,1734484232412,-980.09,0.0002463,2]
[345797434,1734484232422,-150.0,0.00024658,2]
[345797435,1734484232431,-697.534,0.000247,2]
[345797436,1734484232440,-150.0,0.000247,2]
[345797437,1734484232450,-390.155,0.000247,2]
[345797438,1734484232459,-1099.0,0.000247,2]
[345797439,1734484232469,-541.0,0.0002475,2]
[345797440,1734484232478,-1448.71619,0.0002475,2]
[345797441,1734484232488,-3000.0,0.0002475,2]
[345797442,1734484232498,-1006.2,0.00024758,2]
[345797444,1734484232508,-153.86425465,0.00024767,2]
[345797446,1734484232518,-500.0,0.000248,2]
[345797448,1734484232528,-150.0,0.00024845,2]
[345797450,1734484232537,-300.0,0.000249,14]
[345797452,1734484232547,-5379.0919,0.000249,2]
[345797454,1734484232556,-290.0,0.000249,9]
[345797456,1734484232565,-1500.0,0.000249,2]
[345797458,1734484232575,-307.39,0.000249,31]
[345797460,1734484232584,-307.39,0.000249,31]
[345797462,1734484232594,-307.39,0.000249,31]
[345797464,1734484232603,-307.39,0.000249,31]
[345797466,1734484232612,-307.39,0.000249,31]
[345797468,1734484232622,-307.39,0.000249,31]
[345797470,1734484232631,-307.39,0.000249,31]
[345797472,1734484232641,-307.39,0.000249,31]
[345797474,1734484232650,-307.39,0.000249,31]
[345797476,1734484232659,-307.39,0.000249,31]
[345797478,1734484232669,-307.39,0.000249,31]
[345797480,1734484232678,-307.39,0.000249,31]
[345797482,1734484232688,-307.39,0.000249,31]
[345797484,1734484232697,-307.39,0.000249,31]
[345797485,1734484232706,-307.39,0.000249,31]
[345797487,1734484232716,-307.39,0.000249,31]
[345797489,1734484232725,-2917.69260459,0.000249,7]
[345797491,1734484232734,-11705.59228503,0.000249,2]
[345797493,1734484232744,-436.0,0.00024932,2]
[345797495,1734484232753,-2006.0,0.00024971,2]
[345797497,1734484232763,-500.0,0.00024973,2]
[345797499,1734484232773,-200.0,0.0002499,15]
[345797501,1734484232782,-155.4,0.0002499,2]
[345797503,1734484232792,-522.94051623,0.0002499,2]
[345797504,1734484232802,-522.94051623,0.0002499,2]
[345797505,1734484232812,-522.94051623,0.0002499,2]
[345797506,1734484232821,-150.12181,0.00024993,5]
[345797507,1734484232830,-333.12181,0.00024994,15]
[345797508,1734484232843,-333.12181,0.00024994,13]
[345797509,1734484232852,-333.12181,0.00024994,9]
[345797510,1734484232862,-333.12181,0.00024994,7]
[345797511,1734484232871,-222.12181,0.00024994,5]
[345797512,1734484232881,-333.12181,0.00024995,15]
[345797513,1734484232892,-333.12181,0.00024995,13]
[345797514,1734484232901,-333.12181,0.00024995,9]
[345797515,1734484232911,-333.12181,0.00024995,7]
[345797516,1734484232920,-333.12181,0.00024995,5]
[345797517,1734484232930,-333.12181,0.00024996,5]
[345797518,1734484232939,-333.12181,0.00024996,9]
[345797519,1734484232948,-333.12181,0.00024996,15]
[345797520,1734484232958,-333.12181,0.00024996,7]
[345797521,1734484232971,-333.12181,0.00024996,13]
[345797522,1734484232982,-333.12181,0.00024997,15]
[345797523,1734484232992,-333.12181,0.00024997,7]
[345797524,1734484233002,-333.12181,0.00024997,5]
[345797525,1734484233013,-333.12181,0.00024997,9]
[345797526,1734484233026,-333.12181,0.00024997,13]
[345797527,1734484233036,-321.68524715,0.00024998,2]
[345797528,1734484233046,-500.0,0.00024998,2]
[345797529,1734484233057,-500.0,0.00024998,2]
[345797530,1734484233067,-500.0,0.00024998,2]
[345797531,1734484233077,-500.0,0.00024998,2]
[345797532,1734484233089,-500.0,0.00024998,2]
[345797533,1734484233099,-507.8219345,0.00024998,2]
[345797534,1734484233109,-500.0,0.00024998,2]
[345797535,1734484233118,-500.0,0.00024998,2]
[345797536,1734484233128,-333.12181,0.00024998,5]